Cogmind - Beta 15 @@@ ROGUE MODE // 2025.08.24 @ 03:52:42 Player: Yldhra Result: Destroyed by 85-60Z(j) with Overtuned Pulse Rifle Performance ------------- Evolutions (0) 0 Regions Visited (3) 600 Robots Destroyed (6) 30 Value Destroyed (41) 41 Prototype IDs (0) 0 Alien Tech Used (0) 0 Bonus (800) 800 TOTAL SCORE: 1471 Bonus ------- Registered with UFD 300 Met Optimus in HQ 500 Cogmind --------- Core Integrity 0/250 Matter 290/300 Energy 130/150 System Corruption 0% Temperature Hot (289) Movement Core (1500) Ox29 Location -7/Scraptown Parts ------- > --- POWER (1) -------- Micro Fission Core > --- PROPULSION (2) --- (None) > --- UTILITY (2) ------ Huge Storage Unit Makeshift Light Armor Plating > --- WEAPON (2) ------- (None) > --- INVENTORY (25) --- Ion Engine Ion Engine Micro Fission Core Light Treads Light Treads Wheel Compact Wheel Compact Wheel Gravmag System Scrap Suit Improved Heat Sink Medium Storage Unit High-capacity Matter Pod (200) Advanced Targeting Computer Improved Target Analyzer Medium Laser Light Assault Rifle Light Assault Rifle Peak State ------------ > --- POWER ------------ Micro Fission Core > --- PROPULSION ------- Overtuned Treads Wheel > --- UTILITY ---------- Huge Storage Unit Makeshift Light Armor Plating > --- WEAPON ----------- Heavy Battle Rifle KE Penetrator > --- INVENTORY -------- Ion Engine Ion Engine Micro Fission Core Light Treads Light Treads Overtuned Treads Wheel Wheel Wheel Compact Wheel Compact Wheel Gravmag System Scrap Suit Improved Heat Sink Medium Storage Unit High-capacity Matter Pod Advanced Targeting Computer Improved Target Analyzer Makeshift Light Armor Plating Medium Laser Light Assault Rifle Light Assault Rifle [Rating: 30] Favorites ----------- Power Ion Engine Engine Ion Engine Power Core Micro Fission Core Propulsion Wheel Treads Light Treads Wheel Wheel Utility Huge Storage Unit Device Seismic Detector Storage Huge Storage Unit Protection Makeshift Light Armor Plating Weapon Light Assault Rifle Energy Gun Medium Laser Ballistic Gun Light Assault Rifle Build | -11 -10 -10 -7 ------- Run | Yrd Mat Sub Scr Slots Evolved . | . . . . Power . | . . . . Propulsion . | . . . . Utility . | . . . . Weapon . | . . . . Parts Attached 20 | 9 2 . 9 Power 2 | 1 . . 1 Engine 1 | 1 . . . Core 1 | . . . 1 Reactor . | . . . . Propulsion 7 | 3 . . 4 Treads 3 | 1 . . 2 Leg . | . . . . Wheel 4 | 2 . . 2 Hover . | . . . . Flight . | . . . . Utility 6 | 2 2 . 2 Device 1 | 1 . . . Storage 3 | 1 2 . . Processor . | . . . . Hackware . | . . . . Protection 2 | . . . 2 Artifact . | . . . . Weapon 5 | 3 . . 2 Energy Gun 1 | 1 . . . Energy Cannon . | . . . . Ballistic Gun 4 | 2 . . 2 Ballistic Cannon . | . . . . Launcher . | . . . . Special Weapon . | . . . . Impact Weapon . | . . . . Slashing Weapon . | . . . . Piercing Weapon . | . . . . Special Melee Weapon . | . . . . Unidentified Prototypes . | . . . . Parts Lost 8 | . . . 8 Power . | . . . . Propulsion 5 | . . . 5 Utility 1 | . . . 1 Weapon 2 | . . . 2 Highest Loss Streak 7 | . . . 7 To Critical Strikes . | . . . . Average Backups 13 | 4 9 11 14 Power 1 | . 1 1 1 Propulsion 6 | 3 6 6 7 Utility 2 | . 1 3 3 Weapon 2 | . 1 1 3 Tool/Special . | . . . . Unused Backups 11 | . . . 11 Power 2 | . . . 2 Propulsion 4 | . . . 4 Utility 5 | . . . 5 Weapon . | . . . . Tool/Special . | . . . . Average Slot Usage (%) 78 | . 100 100 73 Engine 12 | . 14 14 12 Core 1 | . . . 1 Treads 14 | . 14 14 14 Wheel 13 | . 14 14 13 Device 12 | . 14 14 12 Storage 14 | . 14 14 14 Protection 1 | . . . 1 Energy Gun 2 | . 14 14 . Ballistic Gun 4 | . 14 14 2 Peak Build Rating 30 | 7 8 8 30 Average Rating 7 | 5 7 8 8 On Entrance 5 | . 7 8 8 Naked Turns . | . . . . Heaviest Build 98 | 14 89 89 98 Greatest Support 20 | 20 10 10 18 Greatest Overweight (x) 9 | 1 8 8 9 Average Overweight (x) 6 | . 3 8 7 Largest Inventory Capacity 25 | 8 25 25 25 Average Capacity 23 | 7 16 25 25 Most Carried 25 | 8 11 11 25 Average Carried 13 | 4 9 11 14 Final Capacity 25 | 8 25 25 25 Final Carried 19 | 8 11 11 19 Class Distribution -------------------- 94% | Mutant 5% | Scavenger-Mutant Dominant Class ---------------- Mutant | -10/Materials Mutant | -10/Subcaves Mutant | -7/Scraptown Resources | -11 -10 -10 -7 ----------- Run | Yrd Mat Sub Scr Matter Collected 608 | 308 10 95 195 Remotely . | . . . . Salvage Created 185 | 185 . . . Parts 13 | 13 . . . Haulers Intercepted . | . . . . Recyclers Shooed . | . . . . Parts Field Recycled . | . . . . Retrieved Matter . | . . . . Parts Self-Destructed 6 | . . 6 . Prevented . | . . . . Kills | -11 -10 -10 -7 ------- Run | Yrd Mat Sub Scr Combat Hostiles Destroyed . | . . . . Classes Destroyed 2 | 2 . . . Tunneler 5 | 5 . . . Recycler 1 | 1 . . . Best Kill Streak 2 | 2 . . . Combat Bots Only . | . . . . Max Kills in Single Turn 1 | 1 . . . Gunslinging . | . . . . Exploded . | . . . . Melee . | . . . . Uniques/NPCs Destroyed . | . . . . Combat | -11 -10 -10 -7 -------- Run | Yrd Mat Sub Scr Hostile Shots Fired 99 | . 1 . 98 Missed 23 | . 1 . 22 Hits 76 | . . . 76 Melee 3 | . . . 3 Projectile 73 | . . . 73 Critical Strikes 4 | . . . 4 Damage Taken 1254 | . . . 1254 Core 251 | . . . 251 Absorbed by Shields . | . . . . Core Remaining (%) 100 | 100 . . . Volleys Fired 14 | 14 . . . Largest 2 | 2 . . . Hottest 70 | 70 . . . Shots Fired 28 | 28 . . . Gun 28 | 28 . . . Cannon . | . . . . Launcher . | . . . . Special . | . . . . Kinetic 18 | 18 . . . Thermal 10 | 10 . . . Explosive . | . . . . Electromagnetic . | . . . . Robot Hit Streak 8 | 8 . . . Robot Miss Streak 2 | 2 . . . Penetration Max . | . . . . Secondary Targets . | . . . . Shots Hit Robots 19 | 19 . . . Core Hits 8 | 8 . . . Critical Kills . | . . . . Critical Parts Destroyed 1 | 1 . . . Critical Strikes 1 | 1 . . . Destroy 1 | 1 . . . Melee Attacks . | . . . . Impact . | . . . . Slashing . | . . . . Piercing . | . . . . Sneak Attacks . | . . . . Combat Hostiles . | . . . . Follow-up Attacks . | . . . . Damage Inflicted 177 | 177 . . . Guns 177 | 177 . . . Cannons . | . . . . Explosions . | . . . . Melee . | . . . . Ramming . | . . . . Kinetic 91 | 91 . . . Thermal 86 | 86 . . . Explosive . | . . . . Electromagnetic . | . . . . Impact . | . . . . Slashing . | . . . . Piercing . | . . . . Highest Corruption 2 | . 2 2 . Average Corruption 2 | . 2 2 . Corruption Purged . | . . . . Corruption Blocked . | . . . . Effects 5 | . . 5 . Heat Flow Errors 1 | . . 1 . Energy Discharges 1 | . . 1 . Parts Fused 1 | . . 1 . Data Loss (minor) 2 | . . 2 . Overload Shots . | . . . . Overflow Damage . | . . . . Projectiles . | . . . . Explosions . | . . . . Melee . | . . . . Knockbacks . | . . . . Impact . | . . . . Kinetic . | . . . . Secondary . | . . . . Self-Inflicted Damage . | . . . . Shots . | . . . . Rammed . | . . . . Targets Rammed . | . . . . Kicked . | . . . . Crushed . | . . . . Highest Temperature 233 | 60 . 216 233 Average Temperature 59 | 26 . 116 85 Received Heat Transfer 760 | . . . 760 Effects 1 | . . . 1 Energy Bleed 1 | . . . 1 Siege Activations . | . . . . Martial Activations . | . . . . Shielding Activations . | . . . . Robots Disrupted . | . . . . Combat Hostiles . | . . . . Robots Corrupted . | . . . . Combat Hostiles . | . . . . Parts Fried . | . . . . Impact Corruptions . | . . . . Robots Melted . | . . . . Combat Hostiles . | . . . . Parts Melted . | . . . . Heat Transferred 259 | 259 . . . Parts Sabotaged . | . . . . Parts Stolen . | . . . . Parts Stripped . | . . . . Power Chain Reactions . | . . . . Alert | -11 -10 -10 -7 ------- Run | Yrd Mat Sub Scr Maximum Alert Level . | . . . . Low Security (%) 100 | 100 100 . . Level 1 . | . . . . Level 2 . | . . . . Level 3 . | . . . . Level 4 . | . . . . Level 5 . | . . . . High Security . | . . . . Max Security . | . . . . Peak Influence 20 | 10 20 . . Initial . | . . . . Average 2 | 1 4 . . Influence Increases 60 | 30 30 . . Destroy 0b10 Robot/NC 30 | 30 . . . Lose Combat Pursuer 30 | . 30 . . Influence Decreases 60 | 30 30 . . Time Decay 60 | 30 30 . . Squads Dispatched 1 | . 1 . . Investigation . | . . . . Extermination . | . . . . Reinforcement 1 | . 1 . . Assault . | . . . . Garrison . | . . . . Intercept . | . . . . Searches Triggered . | . . . . Construction Impeded . | . . . . Haulers Reinforced . | . . . . Active Scanning Responses . | . . . . Cargo Convoy Interrupts . | . . . . Stealth | -11 -10 -10 -7 --------- Run | Yrd Mat Sub Scr Distress Signals . | . . . . Communications Jammed . | . . . . Distress Signals . | . . . . Times Spotted 22 | . 3 2 17 Peak Tracking Total 6 | . 3 . 6 Tactical Retreats 1 | . 1 . . Traps | -11 -10 -10 -7 ------- Run | Yrd Mat Sub Scr Traps Triggered 1 | . 1 . . Indirectly . | . . . . Trap Hack Attempts . | . . . . Triggered . | . . . . Disarmed . | . . . . Reprogrammed . | . . . . Reused . | . . . . Traps Extracted . | . . . . Installed . | . . . . Triggered . | . . . . Machines | -11 -10 -10 -7 ---------- Run | Yrd Mat Sub Scr Machines Disabled . | . . . . Max in Single Turn . | . . . . Machines Repaired . | . . . . Machines Dismantled . | . . . . Machines Sabotaged . | . . . . Overloaded Fab Kills . | . . . . Hacking | -11 -10 -10 -7 --------- Run | Yrd Mat Sub Scr Machines Accessed 6 | . . . 6 Terminals . | . . . . Fabricators . | . . . . Repair Stations . | . . . . Recycling Units . | . . . . Scanalyzers . | . . . . Garrison Access . | . . . . Total Hacks 57 | . . . 57 Successful 57 | . . . 57 Failed . | . . . . Catastrophic . | . . . . Database Lockouts . | . . . . Manual . | . . . . Terminals . | . . . . Fabricators . | . . . . Repair Stations . | . . . . Recycling Units . | . . . . Scanalyzers . | . . . . Garrison Access . | . . . . Terminal Hacks 57 | . . . 57 Record 57 | . . . 57 Fabricator Hacks . | . . . . Repair Station Hacks . | . . . . Recycling Unit Hacks . | . . . . Scanalyzer . | . . . . Garrison Access Hacks . | . . . . Unauthorized Hacks . | . . . . Terminals . | . . . . Fabricators . | . . . . Repair Stations . | . . . . Recycling Units . | . . . . Scanalyzers . | . . . . Garrison Access . | . . . . Data Cores Recovered . | . . . . Used . | . . . . Hacking Detections . | . . . . Full Trace Events . | . . . . Feedback Events . | . . . . Feedback Blocked . | . . . . Robot Schematics Acquired . | . . . . Robots Built . | . . . . Authchips . | . . . . Time . | . . . . Total Robot Build Rating . | . . . . Part Schematics Acquired . | . . . . Parts Built . | . . . . Authchips . | . . . . Time . | . . . . Total Part Build Rating . | . . . . Parts Repaired . | . . . . Time . | . . . . Parts Recycled . | . . . . Recycled Matter . | . . . . Retrieved Matter . | . . . . Retrieved Components . | . . . . Parts Scanalyzed . | . . . . Part Schematics Acquired . | . . . . Parts Damaged . | . . . . Bothacking | -11 -10 -10 -7 ------------ Run | Yrd Mat Sub Scr Used RIF Installer . | . . . . Robots Hacked . | . . . . Non-combat . | . . . . Combat . | . . . . Robot Hacks Applied . | . . . . Relay Couplers Released . | . . . . Fabnet Peak Effective % . | . . . . Robots Rewired . | . . . . Allies Hacked . | . . . . Hacks Repelled . | . . . . Allies | -11 -10 -10 -7 -------- Run | Yrd Mat Sub Scr Total Allies . | . . . . Largest Group . | . . . . Highest-Rated Group . | . . . . Highest-Rated Ally . | . . . . Total Orders . | . . . . Ally Attacks . | . . . . Total Damage . | . . . . Kills . | . . . . Allies Corrupted . | . . . . Allies Melted 4 | . . . 4 Intel | -11 -10 -10 -7 ------- Run | Yrd Mat Sub Scr Active Infowar (turns) 2270 | 24 144 293 1809 Seismic 2270 | 24 144 293 1809 Robot Analysis Total . | . . . . Derelict Logs Recovered . | . . . . Drone Launches . | . . . . Drone Recoveries . | . . . . Exploration | -11 -10 -10 -7 ------------- Run | Yrd Mat Sub Scr Turns Passed 2647 | 169 144 293 2041 Spaces Moved 1366 | 112 110 143 1001 Core 7 | 7 . . . Treads 47 | 10 . . 37 Legs . | . . . . Wheels 1312 | 95 110 143 964 Hover . | . . . . Flight . | . . . . Fastest Speed 50 | 50 95 200 200 Average Speed 187 | 98 127 200 201 Slowest Speed 240 | 160 200 200 240 Overloaded Moves . | . . . . Propulsion Burnouts . | . . . . Robots Hopped . | . . . . Potential Cave-ins . | . . . . Cave-ins Triggered . | . . . . Exploration Rate (%) 28 | 7 22 12 72 Regions Visited 3 Branch Regions 2 Pre-discovered Areas 4 | . . . 4 Known Exits Taken . | . . . . Unknown Exits Taken 3 | 1 1 1 . Scrap Searched 2 | . . . 2 Spaces Dug . | . . . . Terrain Destroyed . | . . . . Melee . | . . . . Projectile . | . . . . AOE . | . . . . Terrain Rammed . | . . . . Walls Destroyed . | . . . . Machines Disabled . | . . . . Actions | -11 -10 -10 -7 --------- Run | Yrd Mat Sub Scr Total 1429 | 141 114 151 1023 Wait 9 | . . 9 . Move 1363 | 111 109 142 1001 Hop . | . . . . Pick Up 18 | 7 2 . 9 Fast Attach 9 | 7 . . 2 Attach 6 | . . . 6 Detach 4 | . . . 4 Swap 5 | 2 2 . 1 Drop 1 | . 1 . . Fire 14 | 14 . . . Melee . | . . . . Ram . | . . . . Kick . | . . . . Crush . | . . . . Escape Stasis . | . . . . Rewire . | . . . . Trap . | . . . . Miscellaneous . | . . . . Route ------- -11/Scrapyard -10/Materials -10/Subcaves (discovered 2 exits: *Scr x2) -7/Scraptown (discovered 2 exits: Fac x2) History --------- Turn | Location | Event 2 | -11/Scrapyard | Met Revision 17 34 | -11/Scrapyard | Discovered new exit (range 15) 170 | -11/Scrapyard | Entered Materials 171 | -10/Materials | Met a group of wandering Federalists 304 | -10/Materials | Build established: Mutant 308 | -10/Materials | Discovered new exit (range 5) 314 | -10/Materials | Entered Subcaves 314 | -10/Subcaves | Accompanied by 1 ally 315 | -10/Subcaves | Continued accompanying wandering Federalists (3) 315 | -10/Subcaves | Approached by a straggling Scientist 318 | -10/Subcaves | Scientist uncovered a shortcut to Scraptown 533 | -10/Subcaves | Wandering Federalist uncovered a shortcut to Scraptown 607 | -10/Subcaves | Entered Scraptown 607 | -7/Scraptown | System corruption cleaned by C-Scrubber 1103 | -7/Scraptown | Visited Cave Peace 1227 | -7/Scraptown | Visited CR-KLE's Repair Center 1309 | -7/Scraptown | Visited Symbiants 1349 | -7/Scraptown | Visited Spacefarers 1441 | -7/Scraptown | Heard Great Nut preacher, LISTEN AND RECITE! 1513 | -7/Scraptown | Visited Shadow of the Wyrm 1987 | -7/Scraptown | Visited UFD Registry 1987 | -7/Scraptown | Registered with UFD as "Plasmakit" 2029 | -7/Scraptown | Visited Awakened 2267 | -7/Scraptown | Met Optimus 2267 | -7/Scraptown | Accepted into 0bPrime 2374 | -7/Scraptown | Civil war broke out across Scraptown 2422 | -7/Scraptown | Found Scrap Suit 2436 | -7/Scraptown | Lost 4 allies 2448 | -7/Scraptown | Identified exit to Factory 2511 | -7/Scraptown | Visited Cartography Club 2526 | -7/Scraptown | Learned location of Upper Caves (-4) 2526 | -7/Scraptown | Learned location of Archives (-5) 2526 | -7/Scraptown | Learned 24 Factory zone layouts 2526 | -7/Scraptown | Learned 4 Access zone layouts 2526 | -7/Scraptown | Learned 8 Access zone layouts 2526 | -7/Scraptown | Learned 8 Lower Caves zone layouts 2526 | -7/Scraptown | Learned 8 Upper Caves zone layouts 2526 | -7/Scraptown | Learned 16 Upper Caves zone layouts 2526 | -7/Scraptown | Learned 8 Proximity Caves zone layouts 2526 | -7/Scraptown | Learned 20 Proximity Caves zone layouts 2526 | -7/Scraptown | Learned 4 Hub_04(d) zone layouts 2526 | -7/Scraptown | Learned Materials emergency access door positions 2526 | -7/Scraptown | Learned location of 1 exit from Research 2526 | -7/Scraptown | Learned location of 1 exit from Proximity Caves 2571 | -7/Scraptown | Optimus destroyed in the chaos of civil war 2627 | -7/Scraptown | Core integrity fell below 50% 2647 | -7/Scraptown | Core integrity fell below 20% 2648 | -7/Scraptown | Destroyed by 85-60Z(j) with Overtuned Pulse Rifle Last Messages --------------- 02640_ Critical hit (Burn: +50). 02640_ OF-LO3(j) destroyed. 02643_ Mak. Light Armor Plating destroyed. 02644_ 5T-MX6(j) heat damages Mak. Microdissipator Network. 02644_ PY-62C(j) heat damages Ovr. Titanium Leg. 02644_ PY-62C(j) overheating. 02645_ Overheating: Energy bleed (-34). 02645_ 5T-MX6(j) cannibalizes Mak. Microdissipator Network to repair Mak. Microdissipator Network. 02645_ PY-62C(j) heat damages Ovr. Titanium Leg. 02645_ Ovr. Treads destroyed. 02646_ Wheel destroyed. 02646_ PY-62C(j) overheating. 02647_ KE Penetrator destroyed. 02647_ PY-62C(j) overheating. 02648_ PY-62C(j) heat damages Ovr. Titanium Leg, Ovr. Pulse Rifle. 02648_ Critical hit (Burn: +50). Map ----- +----------------------------------------------------+ | | | | | | | | | | | | | | | | | | | ?????????????????????????????????????????????????? | | ?????????????????????????????????????????????????? | | ?????????????????????????????????????????????????? | | ?????????????????????????????????????????????????? | | ?????????????????????????????????????????????????? | | ?????????????????????????????????????????????????? | | ?????????????????????????????????????????????????? | | ?????????????????????????????????????????????????? | | ?????????????????????????????????????????????????? | | ?????????????????????????????????????????????????? | | ?????????????????????????????????????????????????? | | ?????????????????????????????????????????????????? | | ?????????????????????????????????????????????????? | | ?????????????????????####????????????????????????? | | ?????????????#????#### ##??????